{"text_format":"3","workbook":"xlsx","n_sheets":2,"sheets":["Śledzenie projektów","Konfiguracja"],"not_rendered":{"defined_names":6},"read":"whole","date_system":"1900"}

{"sheet":"Śledzenie projektów","index":0,"n_rows":13,"n_cols":15,"rows_kept":13}
[null,"Śledzenie projektów"]
[null,null,"Procent przekroczenia/niedoboru do oflagowania: ",{"v":0.25,"d":"25%"}]
[]
[null,"Projekt","Kategoria","Przypisany do","Szacowane\nrozpoczęcie","Szacowane \nzakończenie","Szacowana praca (w godzinach)","Szacowany czas trwania (w dniach)","Rzeczywiste \nrozpoczęcie","Rzeczywiste\nzakończenie","Ikona flagi przekroczenia/niedoboru pracy rzeczywistej (w godzinach)","Praca rzeczywista (w godzinach)","Ikona flagi przekroczenia/niedoboru rzeczywistego czasu trwania (w dniach)","Rzeczywisty \nczas trwania \n(w dniach)","Uwagi"]
[null,"Projekt 1","Kategoria 1","Pracownik 1",{"$f":"TODAY()-65","v":"2016-08-15"},{"$f":"TODAY()-5","v":"2016-10-14"},210,{"$f":"IF(COUNTA('Śledzenie projektów'!$E5,'Śledzenie projektów'!$F5)<>2,\"\",DAYS360('Śledzenie projektów'!$E5,'Śledzenie projektów'!$F5,FALSE))","v":59},{"$f":"TODAY()-65","v":"2016-08-15"},{"$f":"TODAY()","v":"2016-10-19"},{"$f":"IFERROR(IF(Śledzenie_projektów[Praca rzeczywista (w godzinach)]=0,\"\",IF(ABS((Śledzenie_projektów[[#This Row],[Praca rzeczywista (w godzinach)]]-Śledzenie_projektów[[#This Row],[Szacowana praca (w godzinach)]])/Śledzenie_projektów[[#This Row],[Szacowana praca (w godzinach)]])>Procent_flagi,1,0)),\"\")","v":1},300,{"$f":"IFERROR(IF(Śledzenie_projektów[Rzeczywisty \nczas trwania \n(w dniach)]=0,\"\",IF(ABS((Śledzenie_projektów[[#This Row],[Rzeczywisty \nczas trwania \n(w dniach)]]-Śledzenie_projektów[[#This Row],[Szacowany czas trwania (w dniach)]])/Śledzenie_projektów[[#This Row],[Szacowany czas trwania (w dniach)]])>Procent_flagi,1,0)),\"\")","v":0},{"$f":"IF(COUNTA('Śledzenie projektów'!$I5,'Śledzenie projektów'!$J5)<>2,\"\",DAYS360('Śledzenie projektów'!$I5,'Śledzenie projektów'!$J5,FALSE))","v":64}]
[null,"Projekt 2","Kategoria 2","Pracownik 4",{"$f":"TODAY()-41","v":"2016-09-08"},{"$f":"TODAY()-10","v":"2016-10-09"},400,{"$f":"IF(COUNTA('Śledzenie projektów'!$E6,'Śledzenie projektów'!$F6)<>2,\"\",DAYS360('Śledzenie projektów'!$E6,'Śledzenie projektów'!$F6,FALSE))","v":31},{"$f":"TODAY()-41","v":"2016-09-08"},{"$f":"TODAY()-7","v":"2016-10-12"},{"$f":"IFERROR(IF(Śledzenie_projektów[Praca rzeczywista (w godzinach)]=0,\"\",IF(ABS((Śledzenie_projektów[[#This Row],[Praca rzeczywista (w godzinach)]]-Śledzenie_projektów[[#This Row],[Szacowana praca (w godzinach)]])/Śledzenie_projektów[[#This Row],[Szacowana praca (w godzinach)]])>Procent_flagi,1,0)),\"\")","v":0},390,{"$f":"IFERROR(IF(Śledzenie_projektów[Rzeczywisty \nczas trwania \n(w dniach)]=0,\"\",IF(ABS((Śledzenie_projektów[[#This Row],[Rzeczywisty \nczas trwania \n(w dniach)]]-Śledzenie_projektów[[#This Row],[Szacowany czas trwania (w dniach)]])/Śledzenie_projektów[[#This Row],[Szacowany czas trwania (w dniach)]])>Procent_flagi,1,0)),\"\")","v":0},{"$f":"IF(COUNTA('Śledzenie projektów'!$I6,'Śledzenie projektów'!$J6)<>2,\"\",DAYS360('Śledzenie projektów'!$I6,'Śledzenie projektów'!$J6,FALSE))","v":34}]
[null,"Projekt 3","Kategoria 1","Pracownik 2",{"$f":"TODAY()-100","v":"2016-07-11"},{"$f":"TODAY()-40","v":"2016-09-09"},500,{"$f":"IF(COUNTA('Śledzenie projektów'!$E7,'Śledzenie projektów'!$F7)<>2,\"\",DAYS360('Śledzenie projektów'!$E7,'Śledzenie projektów'!$F7,FALSE))","v":58},{"$f":"TODAY()-100","v":"2016-07-11"},{"$f":"TODAY()-27","v":"2016-09-22"},{"$f":"IFERROR(IF(Śledzenie_projektów[Praca rzeczywista (w godzinach)]=0,\"\",IF(ABS((Śledzenie_projektów[[#This Row],[Praca rzeczywista (w godzinach)]]-Śledzenie_projektów[[#This Row],[Szacowana praca (w godzinach)]])/Śledzenie_projektów[[#This Row],[Szacowana praca (w godzinach)]])>Procent_flagi,1,0)),\"\")","v":0},500,{"$f":"IFERROR(IF(Śledzenie_projektów[Rzeczywisty \nczas trwania \n(w dniach)]=0,\"\",IF(ABS((Śledzenie_projektów[[#This Row],[Rzeczywisty \nczas trwania \n(w dniach)]]-Śledzenie_projektów[[#This Row],[Szacowany czas trwania (w dniach)]])/Śledzenie_projektów[[#This Row],[Szacowany czas trwania (w dniach)]])>Procent_flagi,1,0)),\"\")","v":0},{"$f":"IF(COUNTA('Śledzenie projektów'!$I7,'Śledzenie projektów'!$J7)<>2,\"\",DAYS360('Śledzenie projektów'!$I7,'Śledzenie projektów'!$J7,FALSE))","v":71}]
[null,"Projekt 4","Kategoria 2","Pracownik 3",{"$f":"TODAY()-90","v":"2016-07-21"},{"$f":"TODAY()-80","v":"2016-07-31"},250,{"$f":"IF(COUNTA('Śledzenie projektów'!$E8,'Śledzenie projektów'!$F8)<>2,\"\",DAYS360('Śledzenie projektów'!$E8,'Śledzenie projektów'!$F8,FALSE))","v":10},{"$f":"TODAY()-90","v":"2016-07-21"},{"$f":"TODAY()-71","v":"2016-08-09"},{"$f":"IFERROR(IF(Śledzenie_projektów[Praca rzeczywista (w godzinach)]=0,\"\",IF(ABS((Śledzenie_projektów[[#This Row],[Praca rzeczywista (w godzinach)]]-Śledzenie_projektów[[#This Row],[Szacowana praca (w godzinach)]])/Śledzenie_projektów[[#This Row],[Szacowana praca (w godzinach)]])>Procent_flagi,1,0)),\"\")","v":0},276,{"$f":"IFERROR(IF(Śledzenie_projektów[Rzeczywisty \nczas trwania \n(w dniach)]=0,\"\",IF(ABS((Śledzenie_projektów[[#This Row],[Rzeczywisty \nczas trwania \n(w dniach)]]-Śledzenie_projektów[[#This Row],[Szacowany czas trwania (w dniach)]])/Śledzenie_projektów[[#This Row],[Szacowany czas trwania (w dniach)]])>Procent_flagi,1,0)),\"\")","v":1},{"$f":"IF(COUNTA('Śledzenie projektów'!$I8,'Śledzenie projektów'!$J8)<>2,\"\",DAYS360('Śledzenie projektów'!$I8,'Śledzenie projektów'!$J8,FALSE))","v":18}]
[null,"Projekt 5","Kategoria 3","Pracownik 2",{"$f":"TODAY()-90","v":"2016-07-21"},{"$f":"TODAY()-50","v":"2016-08-30"},300,{"$f":"IF(COUNTA('Śledzenie projektów'!$E9,'Śledzenie projektów'!$F9)<>2,\"\",DAYS360('Śledzenie projektów'!$E9,'Śledzenie projektów'!$F9,FALSE))","v":39},{"$f":"TODAY()-90","v":"2016-07-21"},{"$f":"TODAY()-44","v":"2016-09-05"},{"$f":"IFERROR(IF(Śledzenie_projektów[Praca rzeczywista (w godzinach)]=0,\"\",IF(ABS((Śledzenie_projektów[[#This Row],[Praca rzeczywista (w godzinach)]]-Śledzenie_projektów[[#This Row],[Szacowana praca (w godzinach)]])/Śledzenie_projektów[[#This Row],[Szacowana praca (w godzinach)]])>Procent_flagi,1,0)),\"\")","v":0},310,{"$f":"IFERROR(IF(Śledzenie_projektów[Rzeczywisty \nczas trwania \n(w dniach)]=0,\"\",IF(ABS((Śledzenie_projektów[[#This Row],[Rzeczywisty \nczas trwania \n(w dniach)]]-Śledzenie_projektów[[#This Row],[Szacowany czas trwania (w dniach)]])/Śledzenie_projektów[[#This Row],[Szacowany czas trwania (w dniach)]])>Procent_flagi,1,0)),\"\")","v":0},{"$f":"IF(COUNTA('Śledzenie projektów'!$I9,'Śledzenie projektów'!$J9)<>2,\"\",DAYS360('Śledzenie projektów'!$I9,'Śledzenie projektów'!$J9,FALSE))","v":44}]
[null,"Projekt 6","Kategoria 4","Pracownik 4",{"$f":"TODAY()-60","v":"2016-08-20"},{"$f":"TODAY()-50","v":"2016-08-30"},500,{"$f":"IF(COUNTA('Śledzenie projektów'!$E10,'Śledzenie projektów'!$F10)<>2,\"\",DAYS360('Śledzenie projektów'!$E10,'Śledzenie projektów'!$F10,FALSE))","v":10},{"$f":"TODAY()-60","v":"2016-08-20"},{"$f":"TODAY()-45","v":"2016-09-04"},{"$f":"IFERROR(IF(Śledzenie_projektów[Praca rzeczywista (w godzinach)]=0,\"\",IF(ABS((Śledzenie_projektów[[#This Row],[Praca rzeczywista (w godzinach)]]-Śledzenie_projektów[[#This Row],[Szacowana praca (w godzinach)]])/Śledzenie_projektów[[#This Row],[Szacowana praca (w godzinach)]])>Procent_flagi,1,0)),\"\")","v":0},510,{"$f":"IFERROR(IF(Śledzenie_projektów[Rzeczywisty \nczas trwania \n(w dniach)]=0,\"\",IF(ABS((Śledzenie_projektów[[#This Row],[Rzeczywisty \nczas trwania \n(w dniach)]]-Śledzenie_projektów[[#This Row],[Szacowany czas trwania (w dniach)]])/Śledzenie_projektów[[#This Row],[Szacowany czas trwania (w dniach)]])>Procent_flagi,1,0)),\"\")","v":1},{"$f":"IF(COUNTA('Śledzenie projektów'!$I10,'Śledzenie projektów'!$J10)<>2,\"\",DAYS360('Śledzenie projektów'!$I10,'Śledzenie projektów'!$J10,FALSE))","v":14}]
[null,"Projekt 7","Kategoria 5","Pracownik 1",{"$f":"TODAY()-44","v":"2016-09-05"},{"$f":"TODAY()-20","v":"2016-09-29"},750,{"$f":"IF(COUNTA('Śledzenie projektów'!$E11,'Śledzenie projektów'!$F11)<>2,\"\",DAYS360('Śledzenie projektów'!$E11,'Śledzenie projektów'!$F11,FALSE))","v":24},{"$f":"TODAY()-44","v":"2016-09-05"},{"$f":"TODAY()-15","v":"2016-10-04"},{"$f":"IFERROR(IF(Śledzenie_projektów[Praca rzeczywista (w godzinach)]=0,\"\",IF(ABS((Śledzenie_projektów[[#This Row],[Praca rzeczywista (w godzinach)]]-Śledzenie_projektów[[#This Row],[Szacowana praca (w godzinach)]])/Śledzenie_projektów[[#This Row],[Szacowana praca (w godzinach)]])>Procent_flagi,1,0)),\"\")","v":0},790,{"$f":"IFERROR(IF(Śledzenie_projektów[Rzeczywisty \nczas trwania \n(w dniach)]=0,\"\",IF(ABS((Śledzenie_projektów[[#This Row],[Rzeczywisty \nczas trwania \n(w dniach)]]-Śledzenie_projektów[[#This Row],[Szacowany czas trwania (w dniach)]])/Śledzenie_projektów[[#This Row],[Szacowany czas trwania (w dniach)]])>Procent_flagi,1,0)),\"\")","v":0},{"$f":"IF(COUNTA('Śledzenie projektów'!$I11,'Śledzenie projektów'!$J11)<>2,\"\",DAYS360('Śledzenie projektów'!$I11,'Śledzenie projektów'!$J11,FALSE))","v":29}]
[null,"Projekt 8","Kategoria 2","Pracownik 1",{"$f":"TODAY()-39","v":"2016-09-10"},{"$f":"TODAY()","v":"2016-10-19"},450,{"$f":"IF(COUNTA('Śledzenie projektów'!$E12,'Śledzenie projektów'!$F12)<>2,\"\",DAYS360('Śledzenie projektów'!$E12,'Śledzenie projektów'!$F12,FALSE))","v":39},{"$f":"TODAY()-45","v":"2016-09-04"},{"$f":"TODAY()-5","v":"2016-10-14"},{"$f":"IFERROR(IF(Śledzenie_projektów[Praca rzeczywista (w godzinach)]=0,\"\",IF(ABS((Śledzenie_projektów[[#This Row],[Praca rzeczywista (w godzinach)]]-Śledzenie_projektów[[#This Row],[Szacowana praca (w godzinach)]])/Śledzenie_projektów[[#This Row],[Szacowana praca (w godzinach)]])>Procent_flagi,1,0)),\"\")","v":0},430,{"$f":"IFERROR(IF(Śledzenie_projektów[Rzeczywisty \nczas trwania \n(w dniach)]=0,\"\",IF(ABS((Śledzenie_projektów[[#This Row],[Rzeczywisty \nczas trwania \n(w dniach)]]-Śledzenie_projektów[[#This Row],[Szacowany czas trwania (w dniach)]])/Śledzenie_projektów[[#This Row],[Szacowany czas trwania (w dniach)]])>Procent_flagi,1,0)),\"\")","v":0},{"$f":"IF(COUNTA('Śledzenie projektów'!$I12,'Śledzenie projektów'!$J12)<>2,\"\",DAYS360('Śledzenie projektów'!$I12,'Śledzenie projektów'!$J12,FALSE))","v":40}]
[null,"Projekt 9","Kategoria 4","Pracownik 1","2016-02-05","2016-06-09",250,{"$f":"IF(COUNTA('Śledzenie projektów'!$E13,'Śledzenie projektów'!$F13)<>2,\"\",DAYS360('Śledzenie projektów'!$E13,'Śledzenie projektów'!$F13,FALSE))","v":124},"2016-03-05","2016-05-05",{"$f":"IFERROR(IF(Śledzenie_projektów[Praca rzeczywista (w godzinach)]=0,\"\",IF(ABS((Śledzenie_projektów[[#This Row],[Praca rzeczywista (w godzinach)]]-Śledzenie_projektów[[#This Row],[Szacowana praca (w godzinach)]])/Śledzenie_projektów[[#This Row],[Szacowana praca (w godzinach)]])>Procent_flagi,1,0)),\"\")","v":0},200,{"$f":"IFERROR(IF(Śledzenie_projektów[Rzeczywisty \nczas trwania \n(w dniach)]=0,\"\",IF(ABS((Śledzenie_projektów[[#This Row],[Rzeczywisty \nczas trwania \n(w dniach)]]-Śledzenie_projektów[[#This Row],[Szacowany czas trwania (w dniach)]])/Śledzenie_projektów[[#This Row],[Szacowany czas trwania (w dniach)]])>Procent_flagi,1,0)),\"\")","v":1},{"$f":"IF(COUNTA('Śledzenie projektów'!$I13,'Śledzenie projektów'!$J13)<>2,\"\",DAYS360('Śledzenie projektów'!$I13,'Śledzenie projektów'!$J13,FALSE))","v":60}]

{"sheet":"Konfiguracja","index":1,"n_rows":10,"n_cols":3,"rows_kept":10}
[null,"Konfiguracja"]
[]
[]
[null,"Nazwa kategorii","Imię i nazwisko pracownika"]
[null,"Kategoria 1","Pracownik 1"]
[null,"Kategoria 2","Pracownik 2"]
[null,"Kategoria 3","Pracownik 3"]
[null,"Kategoria 4","Pracownik 4"]
[null,"Kategoria 5","Pracownik 5"]
[null,"Kategoria 6","Pracownik 6"]